fUSD/lending_fUSD_20241105
["ID","MTS","AMOUNT","RATE_DAILY","PERIOD"]
[341331386,1730812757246,-400.0,0.0002767,10]
[341331387,1730812757297,-400.0,0.0002767,10]
[341331388,1730812757349,-1000.0,0.0002767,30]
[341331389,1730812757401,-562.67,0.0002767,2]
[341331390,1730812757453,-562.67,0.0002767,2]
[341331391,1730812757504,-1537.42,0.0002767,2]
[341331392,1730812757558,-1537.42,0.0002767,2]
[341331393,1730812757614,-1537.42,0.0002767,2]
[341331394,1730812757668,-599.43,0.0002767,2]
[341331395,1730812757722,-599.43,0.0002767,2]
[341331396,1730812757777,-427.0,0.00027671,5]
[341331397,1730812757834,-500.0,0.00027671,2]
[341331398,1730812758023,-645.71060312,0.00027671,2]
[341331399,1730812758079,-204.97101632,0.00027671,2]
[341331400,1730812758134,-500.0,0.00027671,2]
[341331401,1730812758187,-500.0,0.00027671,2]
[341331402,1730812758245,-500.0,0.00027671,2]
[341331403,1730812758299,-500.0,0.00027671,2]
[341331404,1730812758353,-500.0,0.00027671,2]
[341331405,1730812758405,-500.0,0.00027671,2]
[341331406,1730812758467,-500.0,0.00027671,2]
[341331407,1730812758524,-500.0,0.00027671,2]
[341331408,1730812758578,-500.0,0.00027671,2]
[341331409,1730812758632,-500.0,0.00027671,2]
[341331410,1730812758686,-500.0,0.00027671,2]
[341331411,1730812758739,-500.0,0.00027671,2]
[341331412,1730812758794,-500.0,0.00027671,2]
[341331413,1730812758848,-500.0,0.00027671,2]
[341331414,1730812758904,-500.0,0.00027671,2]
[341331415,1730812758959,-502.31150054,0.00027671,2]
[341331416,1730812759013,-500.0,0.00027671,2]
[341331417,1730812759200,-500.0,0.00027671,2]
[341331418,1730812759257,-500.0,0.00027671,2]
[341331419,1730812759311,-500.0,0.00027671,2]
[341331420,1730812759366,-500.0,0.00027671,2]
[341331421,1730812759423,-502.81882154,0.00027671,2]
[341331422,1730812759479,-500.0,0.00027671,2]
[341331423,1730812759534,-500.0,0.00027671,2]
[341331424,1730812759588,-500.0,0.00027671,2]
[341331425,1730812759642,-500.0,0.00027671,2]
[341331426,1730812759695,-500.0,0.00027671,2]
[341331427,1730812759749,-500.0,0.00027671,2]
[341331428,1730812759804,-500.0,0.00027671,2]
[341331429,1730812759863,-500.0,0.00027671,2]
[341331430,1730812759917,-500.0,0.00027671,2]
[341331431,1730812759970,-500.0,0.00027671,2]
[341331432,1730812760024,-500.0,0.00027671,2]
[341331433,1730812760076,-500.0,0.00027671,2]
[341331434,1730812760127,-500.0,0.00027671,2]
[341331435,1730812760178,-500.0,0.00027671,2]
[341331436,1730812760348,-500.0,0.00027671,2]
[341331437,1730812760400,-500.0,0.00027671,2]
[341331438,1730812760451,-500.0,0.00027671,2]
[341331439,1730812760502,-500.0,0.00027671,2]
[341331440,1730812760553,-500.0,0.00027671,2]
[341331441,1730812760604,-500.0,0.00027671,2]
[341331442,1730812760654,-500.0,0.00027671,2]
[341331443,1730812760706,-500.0,0.00027671,2]
[341331444,1730812760758,-500.0,0.00027671,2]
[341331445,1730812760810,-500.0,0.00027671,2]
[341331446,1730812760864,-244.53951509,0.00027671,2]
[341331447,1730812760915,-500.0,0.00027671,2]
[341331448,1730812760968,-500.0,0.00027671,2]
[341331449,1730812761021,-500.0,0.00027671,2]
[341331450,1730812761072,-500.0,0.00027671,2]
[341331451,1730812761122,-500.0,0.00027671,2]
[341331452,1730812761173,-500.0,0.00027671,2]
[341331453,1730812761224,-500.0,0.00027671,2]
[341331454,1730812761274,-500.0,0.00027671,2]
[341331455,1730812761445,-500.0,0.00027671,2]
[341331456,1730812761499,-500.0,0.00027671,2]
[341331457,1730812761551,-500.0,0.00027671,2]
[341331458,1730812761602,-530.81185654,0.00027671,2]
[341331459,1730812761654,-500.0,0.00027671,2]
[341331460,1730812761707,-500.0,0.00027671,2]
[341331461,1730812761761,-500.0,0.00027671,2]
[341331462,1730812761814,-500.0,0.00027671,2]
[341331463,1730812761867,-500.0,0.00027671,2]
[341331464,1730812761922,-500.0,0.00027671,2]
[341331465,1730812761975,-510.96,0.00027671,2]
[341331466,1730812762028,-500.0,0.00027671,2]
[341331467,1730812762080,-300.51183083,0.00027671,2]
[341331468,1730812762132,-500.0,0.00027671,2]
[341331469,1730812762184,-500.0,0.00027671,2]
[341331470,1730812762236,-520.83880309,0.00027671,2]
[341331471,1730812762288,-500.0,0.00027671,2]
[341331472,1730812762339,-500.0,0.00027671,2]
[341331473,1730812762391,-500.0,0.00027671,2]
[341331474,1730812762442,-500.0,0.00027671,2]
[341331475,1730812762616,-500.0,0.00027671,2]
[341331476,1730812762667,-500.0,0.00027671,2]
[341331477,1730812762720,-500.0,0.00027671,2]
[341331478,1730812762772,-500.0,0.00027671,2]
[341331479,1730812762829,-500.0,0.00027671,2]
[341331480,1730812762883,-500.0,0.00027671,2]
[341331481,1730812762935,-500.0,0.00027671,2]
[341331482,1730812762989,-500.0,0.00027671,2]
[341331483,1730812763043,-500.0,0.00027671,2]
[341331484,1730812763098,-502.72528514,0.00027671,2]
[341331485,1730812763151,-500.0,0.00027671,2]
[341331486,1730812763204,-500.0,0.00027671,2]
[341331487,1730812763257,-500.0,0.00027671,2]
[341331488,1730812763312,-505.5142895,0.00027671,2]
[341331489,1730812763365,-500.0,0.00027671,2]
[341331490,1730812763417,-387.67799425,0.00027671,2]
[341331491,1730812763469,-362.31994297,0.00027671,2]
[341331492,1730812763519,-500.0,0.00027671,2]
[341331493,1730812763570,-500.0,0.00027671,2]
[341331494,1730812763740,-501.09017728,0.00027671,2]
[341331495,1730812763793,-500.0,0.00027671,2]
[341331496,1730812763844,-500.0,0.00027671,2]
[341331497,1730812763894,-500.0,0.00027671,2]
[341331498,1730812763948,-500.0,0.00027671,2]
[341331499,1730812764002,-500.0,0.00027671,2]
[341331500,1730812764054,-500.0,0.00027671,2]
[341331501,1730812764106,-500.0,0.00027671,2]
[341331502,1730812764158,-500.0,0.00027671,2]
[341331503,1730812764212,-500.0,0.00027671,2]
[341331504,1730812764266,-500.0,0.00027671,2]
[341331505,1730812764320,-522.22718726,0.00027671,2]
[341331506,1730812764373,-500.0,0.00027671,2]
[341331507,1730812764424,-500.0,0.00027671,2]
[341331508,1730812764475,-500.0,0.00027671,2]
[341331509,1730812764527,-549.87234318,0.00027671,2]
[341331510,1730812764578,-347.68533076,0.00027671,2]
[341331511,1730812764630,-517.59891966,0.00027671,2]
[341331512,1730812764682,-500.0,0.00027671,2]
[341331513,1730812764852,-211.00532756,0.00027671,2]
[341331514,1730812764905,-500.0,0.00027671,2]
[341331515,1730812764957,-500.0,0.00027671,2]
[341331516,1730812765008,-530.01864695,0.00027671,2]
[341331517,1730812765061,-2445.9,0.00027671,2]
[341331518,1730812765111,-527.63777631,0.00027671,2]
[341331519,1730812765160,-500.0,0.00027671,2]
[341331520,1730812765214,-500.0,0.00027671,2]
[341331521,1730812765262,-500.0,0.00027671,2]
[341331522,1730812765312,-500.0,0.00027671,2]
[341331523,1730812765361,-404.7778296,0.00027671,2]
[341331524,1730812765411,-639.40430259,0.00027671,2]
[341331525,1730812765466,-500.0,0.00027671,2]
[341331526,1730812765518,-516.83516608,0.00027671,2]
[341331527,1730812765570,-500.0,0.00027671,2]
[341331528,1730812765620,-500.0,0.00027671,2]
[341331529,1730812765675,-500.0,0.00027671,2]
[341331530,1730812765725,-500.0,0.00027671,2]
[341331531,1730812765774,-500.0,0.00027671,2]
[341331532,1730812765951,-500.0,0.00027671,2]
[341331533,1730812766004,-526.75688363,0.00027671,2]
[341331534,1730812766055,-500.0,0.00027671,2]
[341331535,1730812766104,-500.0,0.00027671,2]
[341331536,1730812766154,-500.0,0.00027671,2]
[341331537,1730812766208,-500.0,0.00027671,2]
[341331538,1730812766265,-500.0,0.00027671,2]
[341331539,1730812766317,-500.0,0.00027671,2]
[341331540,1730812766368,-498.69858557,0.00027671,2]
[341331541,1730812766418,-500.0,0.00027671,2]
[341331542,1730812766477,-500.0,0.00027671,2]
[341331543,1730812766526,-500.0,0.00027671,2]
[341331544,1730812766577,-525.27006176,0.00027671,2]
[341331545,1730812766626,-500.0,0.00027671,2]
[341331546,1730812766676,-500.0,0.00027671,2]
[341331547,1730812766725,-500.0,0.00027671,2]
[341331548,1730812766774,-500.0,0.00027671,2]
[341331549,1730812766828,-500.0,0.00027671,2]
[341331550,1730812766883,-390.59673865,0.00027671,2]
[341331551,1730812767055,-500.0,0.00027671,2]
[341331552,1730812767105,-500.0,0.00027671,2]
[341331553,1730812767155,-500.0,0.00027671,2]
[341331554,1730812767205,-500.0,0.00027671,2]
[341331555,1730812767258,-385.58688595,0.00027671,2]
[341331556,1730812767311,-640.40131536,0.00027671,2]
[341331557,1730812767362,-622.39244312,0.00027671,2]
[341331558,1730812767412,-500.0,0.00027671,2]
[341331559,1730812767464,-500.0,0.00027671,2]
[341331560,1730812767515,-500.0,0.00027671,2]
[341331561,1730812767564,-489.92141942,0.00027671,2]
[341331562,1730812767615,-500.0,0.00027671,2]
[341331563,1730812767663,-500.0,0.00027671,2]
[341331564,1730812767712,-504.10064425,0.00027671,2]
[341331565,1730812767763,-500.0,0.00027671,2]
[341331566,1730812767814,-500.0,0.00027671,2]
[341331567,1730812767866,-615.46072955,0.00027671,2]
[341331568,1730812767918,-500.0,0.00027671,2]
[341331569,1730812767971,-500.0,0.00027671,2]
[341331570,1730812768141,-350.87040588,0.00027671,2]
[341331571,1730812768194,-1201.79,0.00027671,2]
[341331572,1730812768246,-500.0,0.00027671,2]
[341331573,1730812768298,-500.0,0.00027671,2]
[341331574,1730812768350,-500.0,0.00027671,2]
[341331575,1730812768403,-620.1137359,0.00027671,2]
[341331576,1730812768456,-500.0,0.00027671,2]
[341331577,1730812768509,-500.0,0.00027671,2]
[341331578,1730812768561,-500.0,0.00027671,2]
[341331579,1730812768613,-500.0,0.00027671,2]
[341331580,1730812768664,-846.04,0.00027671,2]
[341331581,1730812768716,-500.0,0.00027671,2]
[341331582,1730812768768,-500.0,0.00027671,2]
[341331583,1730812768821,-500.0,0.00027671,2]
[341331584,1730812768874,-500.0,0.00027671,2]
[341331585,1730812768927,-656.19,0.00027671,2]
[341331586,1730812768978,-500.0,0.00027671,2]
[341331587,1730812769029,-500.0,0.00027671,2]
[341331588,1730812769078,-500.0,0.00027671,2]
[341331589,1730812769254,-500.0,0.00027671,2]
[341331590,1730812769308,-513.84,0.00027671,2]
[341331591,1730812769359,-500.0,0.00027671,2]
[341331592,1730812769411,-500.0,0.00027671,2]
[341331593,1730812769464,-500.0,0.00027671,2]
[341331594,1730812769516,-500.0,0.00027671,2]
[341331595,1730812769568,-500.0,0.00027671,2]
[341331596,1730812769621,-193.33220376,0.00027671,2]
[341331597,1730812769673,-521.01539223,0.00027671,2]
[341331598,1730812769728,-1000.0,0.00027671,2]
[341331599,1730812769781,-500.0,0.00027671,2]
[341331600,1730812769839,-500.0,0.00027671,2]
[341331601,1730812769892,-500.0,0.00027671,2]
[341331602,1730812769944,-500.0,0.00027671,2]
[341331603,1730812769997,-500.0,0.00027671,2]
[341331604,1730812770048,-500.0,0.00027671,2]
[341331605,1730812770099,-500.0,0.00027671,2]
[341331606,1730812770149,-500.0,0.00027671,2]
[341331607,1730812770203,-523.19,0.00027671,2]
[341331608,1730812770372,-646.45,0.00027671,2]
[341331609,1730812770425,-500.0,0.00027671,2]
[341331610,1730812770477,-500.0,0.00027671,2]
[341331611,1730812770528,-700.0,0.00027671,2]
[341331612,1730812770580,-508.44,0.00027671,2]
[341331613,1730812770632,-798.49,0.00027671,2]
[341331614,1730812770684,-500.0,0.00027671,2]
[341331615,1730812770736,-500.0,0.00027671,2]
[341331616,1730812770790,-500.0,0.00027671,2]
[341331617,1730812770848,-500.0,0.00027671,2]
[341331618,1730812770902,-551.56196833,0.00027671,2]
[341331619,1730812770954,-1312.3,0.00027671,2]
[341331620,1730812771003,-500.0,0.00027671,2]
[341331621,1730812771053,-567.74045463,0.00027671,2]
[341331622,1730812771103,-500.0,0.00027671,2]
[341331623,1730812771160,-500.0,0.00027671,2]
[341331624,1730812771210,-637.94,0.00027671,2]
[341331625,1730812771259,-500.0,0.00027671,2]
[341331626,1730812771309,-500.0,0.00027671,2]
[341331627,1730812771357,-1070.2,0.00027671,2]
[341331628,1730812771528,-500.0,0.00027671,2]
[341331629,1730812771581,-1206.28,0.00027671,2]
[341331630,1730812771633,-500.0,0.00027671,2]
[341331631,1730812771684,-615.22,0.00027671,2]
[341331632,1730812771736,-500.0,0.00027671,2]
[341331633,1730812771791,-500.0,0.00027671,2]
[341331634,1730812771845,-500.0,0.00027671,2]
[341331635,1730812771899,-1837.65,0.00027671,2]
[341331636,1730812771955,-500.0,0.00027671,2]
[341331637,1730812772011,-500.0,0.00027671,2]
[341331638,1730812772064,-500.0,0.00027671,2]
[341331639,1730812772116,-500.0,0.00027671,2]
[341331640,1730812772169,-500.0,0.00027671,2]
[341331641,1730812772223,-1167.56,0.00027671,2]
[341331642,1730812772276,-500.0,0.00027671,2]
[341331643,1730812772330,-500.0,0.00027671,2]
[341331644,1730812772384,-1768.15,0.00027671,2]
[341331645,1730812772437,-500.0,0.00027671,2]
[341331646,1730812772491,-500.0,0.00027671,2]
[341331647,1730812772667,-577.37480367,0.00027671,2]
[341331648,1730812772722,-523.79792099,0.00027671,2]
[341331649,1730812772777,-500.0,0.00027671,2]
[341331650,1730812772836,-500.0,0.00027671,2]
[341331651,1730812772891,-500.0,0.00027671,2]
[341331652,1730812772945,-632.3,0.00027671,2]
[341331653,1730812773001,-500.0,0.00027671,2]
[341331654,1730812773057,-516.81536409,0.00027671,2]
[341331655,1730812773110,-500.0,0.00027671,2]
[341331656,1730812773163,-500.0,0.00027671,2]
[341331657,1730812773216,-1839.69,0.00027671,2]
[341331658,1730812773269,-500.0,0.00027671,2]
[341331659,1730812773326,-531.07139773,0.00027671,2]
[341331660,1730812773377,-821.14,0.00027671,2]
[341331661,1730812773430,-500.0,0.00027671,2]
[341331662,1730812773484,-500.0,0.00027671,2]
[341331663,1730812773537,-734.75,0.00027671,2]
[341331664,1730812773590,-500.0,0.00027671,2]
[341331665,1730812773644,-500.0,0.00027671,2]
[341331666,1730812773830,-500.0,0.00027671,2]
[341331667,1730812773887,-500.0,0.00027671,2]
[341331668,1730812773945,-500.0,0.00027671,2]
[341331669,1730812774003,-500.0,0.00027671,2]
[341331670,1730812774060,-520.02,0.00027671,2]
[341331671,1730812774118,-500.0,0.00027671,2]
[341331672,1730812774174,-500.0,0.00027671,2]
[341331673,1730812774231,-500.0,0.00027671,2]
[341331674,1730812774285,-500.0,0.00027671,2]
[341331675,1730812774339,-500.0,0.00027671,2]
[341331676,1730812774392,-500.0,0.00027671,2]
[341331677,1730812774446,-1176.73,0.00027671,2]
[341331678,1730812774498,-617.6939916,0.00027671,2]
[341331679,1730812774552,-500.0,0.00027671,2]
[341331680,1730812774605,-500.0,0.00027671,2]
[341331681,1730812774658,-500.0,0.00027671,2]
[341331682,1730812774711,-553.13,0.00027671,2]
[341331683,1730812774764,-500.0,0.00027671,2]
[341331684,1730812774818,-870.64,0.00027671,2]
[341331685,1730812775001,-500.0,0.00027671,2]
[341331686,1730812775056,-548.78,0.00027671,2]
[341331687,1730812775110,-500.0,0.00027671,2]
[341331688,1730812775166,-500.0,0.00027671,2]
[341331689,1730812775223,-500.0,0.00027671,2]
[341331690,1730812775278,-500.0,0.00027671,2]
[341331691,1730812775334,-501.98,0.00027671,2]
[341331692,1730812775389,-500.0,0.00027671,2]
[341331693,1730812775443,-500.0,0.00027671,2]
[341331694,1730812775499,-552.00832613,0.00027671,2]
[341331695,1730812775554,-500.0,0.00027671,2]
[341331696,1730812775608,-500.0,0.00027671,2]
[341331697,1730812775662,-500.0,0.00027671,2]
[341331698,1730812775714,-383.36282005,0.00027671,2]
[341331699,1730812775765,-500.0,0.00027671,2]
[341331700,1730812775817,-2000.0,0.00027671,2]
[341331701,1730812775869,-525.12844484,0.00027671,2]
[341331702,1730812775921,-531.76,0.00027671,2]
[341331703,1730812775972,-500.0,0.00027671,2]
[341331704,1730812776145,-582.53373199,0.00027671,2]
[341331705,1730812776201,-500.0,0.00027671,2]
[341331706,1730812776254,-500.0,0.00027671,2]
[341331707,1730812776305,-500.0,0.00027671,2]
[341331708,1730812776357,-500.0,0.00027671,2]
[341331709,1730812776409,-500.0,0.00027671,2]
[341331710,1730812776461,-500.0,0.00027671,2]
[341331711,1730812776512,-816.55,0.00027671,2]
[341331712,1730812776563,-500.0,0.00027671,2]
[341331713,1730812776616,-637.88180985,0.00027671,2]
[341331714,1730812776667,-622.66,0.00027671,2]
[341331715,1730812776720,-500.0,0.00027671,2]
[341331716,1730812776772,-735.03,0.00027671,2]
[341331717,1730812776823,-332.18372208,0.00027671,2]
[341331718,1730812776875,-602.89226612,0.00027671,2]
[341331719,1730812776928,-500.0,0.00027671,2]
[341331720,1730812776980,-500.0,0.00027671,2]
[341331721,1730812777031,-500.0,0.00027671,2]
[341331722,1730812777083,-723.09,0.00027671,2]
[341331723,1730812777266,-500.0,0.00027671,2]
[341331724,1730812777318,-500.0,0.00027671,2]
[341331725,1730812777371,-500.0,0.00027671,2]
[341331726,1730812777423,-500.0,0.00027671,2]
[341331727,1730812777479,-254.2852834,0.00027671,2]
[341331728,1730812777533,-500.0,0.00027671,2]
[341331729,1730812777597,-500.0,0.00027671,2]
[341331730,1730812777651,-500.0,0.00027671,2]
[341331731,1730812777703,-500.0,0.00027671,2]
[341331732,1730812777755,-500.0,0.00027671,2]
[341331733,1730812777808,-500.0,0.00027671,2]
[341331734,1730812777861,-500.0,0.00027671,2]
[341331735,1730812777917,-924.97,0.00027671,2]
[341331736,1730812777971,-500.0,0.00027671,2]
[341331737,1730812778025,-500.0,0.00027671,2]
[341331738,1730812778078,-500.0,0.00027671,2]
[341331739,1730812778130,-500.0,0.00027671,2]
[341331740,1730812778186,-1098.57,0.00027671,2]
[341331741,1730812778237,-500.0,0.00027671,2]
[341331742,1730812778410,-573.09382619,0.00027671,2]
[341331743,1730812778465,-500.0,0.00027671,2]
[341331744,1730812778519,-500.0,0.00027671,2]
[341331745,1730812778572,-500.0,0.00027671,2]
[341331746,1730812778627,-500.0,0.00027671,2]
[341331747,1730812778680,-500.0,0.00027671,2]
[341331748,1730812778734,-500.0,0.00027671,2]
[341331749,1730812778787,-500.0,0.00027671,2]
[341331750,1730812778846,-500.0,0.00027671,2]
[341331751,1730812778903,-500.0,0.00027671,2]
[341331752,1730812778956,-500.0,0.00027671,2]
[341331753,1730812779009,-1710.9,0.00027671,2]
[341331754,1730812779061,-500.0,0.00027671,2]
[341331755,1730812779114,-500.0,0.00027671,2]
[341331756,1730812779166,-1028.359311,0.00027671,7]
[341331757,1730812779219,-500.6,0.00027671,2]
[341331759,1730812779272,-1028.359311,0.00027671,7]
[341331760,1730812779329,-153.3082268,0.00027671,2]
[341331761,1730812779382,-176.95701798,0.00027671,2]
[341331762,1730812779556,-500.0,0.00027671,2]
[341331763,1730812779609,-500.0,0.00027671,2]
[341331764,1730812779663,-1028.359311,0.00027671,7]
[341331765,1730812779717,-1028.359319,0.00027671,7]
[341331766,1730812779773,-500.0,0.00027671,2]
[341331767,1730812779827,-500.0,0.00027671,2]
[341331768,1730812779882,-1474.58,0.00027671,2]
[341331769,1730812779940,-500.0,0.00027671,2]
[341331770,1730812779995,-500.0,0.00027671,2]
[341331771,1730812780052,-500.0,0.00027671,2]
[341331772,1730812780105,-500.0,0.00027671,2]
[341331773,1730812780158,-500.0,0.00027671,2]
[341331774,1730812780213,-500.0,0.00027671,2]
[341331775,1730812780264,-500.0,0.00027671,2]
[341331776,1730812780318,-500.0,0.00027671,2]
[341331777,1730812780370,-1619.43,0.00027671,2]
[341331778,1730812780420,-500.0,0.00027671,2]
[341331779,1730812780472,-500.0,0.00027671,2]
[341331780,1730812780524,-500.0,0.00027671,2]
[341331781,1730812780577,-500.0,0.00027671,2]
[341331782,1730812780755,-500.0,0.00027671,2]
[341331783,1730812780809,-500.0,0.00027671,2]
[341331784,1730812780862,-500.0,0.00027671,2]
[341331785,1730812780918,-500.0,0.00027671,2]
[341331786,1730812780975,-534.2324254,0.00027671,2]
[341331787,1730812781029,-805.39,0.00027671,2]
[341331788,1730812781083,-2207.78,0.00027671,2]
[341331789,1730812781135,-500.0,0.00027671,2]
[341331790,1730812781189,-473.6,0.00027671,2]
[341331791,1730812781245,-500.0,0.00027671,2]
[341331792,1730812781296,-500.0,0.00027671,2]
[341331793,1730812781349,-500.0,0.00027671,2]
[341331794,1730812781400,-500.0,0.00027671,2]
[341331795,1730812781451,-181.02897284,0.00027671,2]
[341331796,1730812781502,-927.29,0.00027671,2]
[341331797,1730812781552,-732.11,0.00027671,2]
[341331798,1730812781603,-500.0,0.00027671,2]
[341331799,1730812781654,-500.0,0.00027671,2]
[341331800,1730812781703,-500.0,0.00027671,2]
[341331801,1730812781881,-171.459305,0.00027671,7]
[341331802,1730812781939,-660.26,0.00027671,2]
[341331803,1730812781991,-171.459305,0.00027671,7]
[341331804,1730812782044,-500.0,0.00027671,2]
[341331805,1730812782096,-604.78,0.00027671,2]
[341331806,1730812782148,-500.0,0.00027671,2]
[341331807,1730812782200,-530.97797158,0.00027671,2]
[341331808,1730812782252,-1666.66,0.00027671,2]
[341331809,1730812782304,-580.08,0.00027671,2]
[341331810,1730812782356,-171.459305,0.00027671,7]
[341331811,1730812782409,-500.0,0.00027671,2]
[341331812,1730812782460,-171.459311,0.00027671,7]
[341331813,1730812782511,-500.0,0.00027671,2]
[341331814,1730812782562,-502.09803997,0.00027671,2]
[341331815,1730812782612,-156.825319,0.00027671,7]
[341331816,1730812782662,-500.0,0.00027671,2]
[341331817,1730812782712,-500.0,0.00027671,2]
[341331818,1730812782763,-500.0,0.00027671,2]
[341331819,1730812782814,-500.0,0.00027671,2]
[341331820,1730812782987,-631.6506505,0.00027671,2]
[341331821,1730812783045,-6072.47,0.00027671,2]
[341331822,1730812783098,-156.825316,0.00027671,7]
[341331823,1730812783152,-500.0,0.00027671,2]
[341331824,1730812783203,-500.0,0.00027671,2]
[341331825,1730812783257,-500.0,0.00027671,2]
[341331826,1730812783313,-500.0,0.00027671,2]
[341331827,1730812783365,-500.0,0.00027671,2]
[341331828,1730812783418,-978.67,0.00027671,2]
[341331829,1730812783470,-523.96,0.00027671,2]
[341331830,1730812783525,-500.0,0.00027671,2]
[341331831,1730812783578,-707.6,0.00027671,2]
[341331832,1730812783631,-666.5,0.00027671,2]
[341331833,1730812783684,-500.0,0.00027671,2]
[341331834,1730812783739,-1062.47,0.00027671,2]
[341331835,1730812783795,-1307.17,0.00027671,2]
[341331836,1730812783849,-500.0,0.00027671,2]
[341331837,1730812783904,-1352.53,0.00027671,2]
[341331838,1730812783957,-2027.95,0.00027671,2]
[341331839,1730812784139,-500.0,0.00027671,2]
[341331840,1730812784193,-563.42,0.00027671,2]
[341331841,1730812784247,-500.0,0.00027671,2]
[341331842,1730812784301,-500.0,0.00027671,2]
[341331843,1730812784354,-506.2885155,0.00027671,2]
[341331844,1730812784408,-500.0,0.00027671,2]
[341331845,1730812784463,-500.0,0.00027671,2]
[341331846,1730812784516,-449.819028,0.00027671,7]
[341331847,1730812784568,-593.8,0.00027671,2]
[341331848,1730812784620,-500.0,0.00027671,2]
[341331849,1730812784672,-826.03,0.00027671,2]
[341331850,1730812784725,-449.819029,0.00027671,7]
[341331851,1730812784777,-500.0,0.00027671,2]
[341331852,1730812784831,-500.0,0.00027671,2]
[341331853,1730812784886,-1126.19,0.00027671,2]
[341331854,1730812784939,-500.0,0.00027671,2]
[341331855,1730812784995,-766.38,0.00027671,2]
[341331856,1730812785042,-500.0,0.00027671,2]
[341331857,1730812785096,-1204.91,0.00027671,2]
[341331858,1730812785271,-452.18402986,0.00027671,2]
[341331859,1730812785325,-500.0,0.00027671,2]
[341331860,1730812785379,-12391.78,0.00027671,2]
[341331861,1730812785432,-500.0,0.00027671,2]
[341331862,1730812785486,-500.0,0.00027671,2]
[341331863,1730812785540,-500.0,0.00027671,2]
[341331865,1730812785593,-761.59,0.00027671,2]
[341331866,1730812785646,-500.0,0.00027671,2]
[341331867,1730812785699,-506.80004196,0.00027671,2]
[341331868,1730812785751,-669.2,0.00027671,2]
[341331869,1730812785805,-2613.32,0.00027671,2]
[341331870,1730812785858,-500.0,0.00027671,2]
[341331871,1730812785914,-604.89,0.00027671,2]
[341331872,1730812785968,-1311.98,0.00027671,2]
[341331873,1730812786021,-500.0,0.00027671,2]
[341331874,1730812786073,-3039.63,0.00027671,2]
[341331875,1730812786126,-500.0,0.00027671,2]
[341331876,1730812786207,-19039.06,0.00027671,2]
[341331877,1730812786295,-500.0,0.00027671,2]
[341331878,1730812786379,-500.0,0.00027671,2]
[341331879,1730812786460,-842.13,0.00027671,2]
[341331880,1730812786539,-5976.698328,0.00027671,7]
[341331881,1730812786615,-500.0,0.00027671,2]
[341331882,1730812786694,-500.0,0.00027671,2]
[341331883,1730812786772,-500.0,0.00027671,2]
[341331884,1730812786853,-860.62,0.00027671,2]
[341331885,1730812786932,-5976.698318,0.00027671,7]
[341331886,1730812787010,-500.0,0.00027671,2]
[341331887,1730812787083,-500.0,0.00027671,2]